fUSD/lending_fUSD_20260410
["ID","MTS","AMOUNT","RATE_DAILY","PERIOD"]
[420216255,1775796633114,-174.8898,0.000149,2]
[420216256,1775796633127,-510.0,0.00014908,3]
[420216257,1775796633146,-1834.98755059,0.0001491,2]
[420216258,1775796633157,-1119.0,0.00014939,2]
[420216259,1775796633170,-300.0,0.00015,2]
[420216260,1775796633184,-1832.40356241,0.00015047,2]
[420216261,1775796633197,-150.0,0.00015052,3]
[420216262,1775796633211,-801.22,0.00015057,2]
[420216263,1775796633221,-3036.92,0.00015057,2]
[420216264,1775796633238,-1832.40356232,0.00015142,2]
[420216265,1775796633249,-5888.0,0.00015147,2]
[420216266,1775796633262,-1834.98755059,0.00015158,2]
[420216267,1775796633274,-3000.0,0.00015178,2]
[420216268,1775796633292,-2000.0,0.00015178,2]
[420216269,1775796633307,-1832.40356232,0.00015237,2]
[420216270,1775796633321,-3669.6966,0.00015263,2]
[420216271,1775796633343,-177.360016,0.00015288,2]
[420216272,1775796633355,-1119.0,0.00015316,2]
[420216273,1775796633399,-420.07123019,0.0001532,2]
[420216274,1775796633412,-1695.0,0.00015325,2]
[420216275,1775796633450,-1832.40356232,0.00015331,2]
[420216276,1775796633476,-1600.0,0.00015361,2]
[420216277,1775796633493,-200.0,0.00015367,2]
[420216278,1775796633514,-1834.98755059,0.00015405,2]
[420216279,1775796633537,-1832.40356232,0.00015426,2]
[420216280,1775796633548,-408.81354,0.0001544,2]
[420216281,1775796633559,-408.81354,0.0001544,2]
[420216282,1775796633581,-408.81354,0.0001545,2]
[420216283,1775796633591,-428.018828,0.00015455,2]
[420216284,1775796633602,-1149.924,0.0001547,2]
[420216285,1775796633625,-500.0,0.00015475,2]
[420216286,1775796633636,-250.0,0.000155,2]
[420216287,1775796633647,-237.39,0.00015502,7]
[420216288,1775796633668,-400.0,0.00015506,7]
[420216289,1775796633684,-400.0,0.00015511,7]
[420216290,1775796633700,-1119.0,0.00015511,2]
[420216291,1775796633713,-1832.40356232,0.00015521,2]
[420216292,1775796633729,-250.0,0.00015534,2]
[420216293,1775796633746,-231.9,0.00015545,7]
[420216294,1775796633759,-400.0,0.00015549,7]
[420216295,1775796633770,-400.0,0.00015554,7]
[420216296,1775796633781,-400.0,0.00015562,7]
[420216297,1775796633794,-294.42,0.00015562,7]
[420216298,1775796633805,-400.0,0.00015566,7]
[420216299,1775796633818,-400.0,0.00015566,7]
[420216300,1775796633829,-400.0,0.00015566,7]
[420216301,1775796633841,-400.0,0.00015571,7]
[420216302,1775796633852,-400.0,0.00015571,7]
[420216303,1775796633863,-400.0,0.00015571,7]
[420216304,1775796633873,-362.45,0.00015571,7]
[420216305,1775796633884,-242.03,0.00015572,7]
[420216306,1775796633895,-323.56,0.00015577,7]
[420216307,1775796633906,-244.58,0.00015582,7]
[420216308,1775796633915,-949.13782317,0.00015595,2]
[420216309,1775796635234,-2691.99840043,0.00015595,2]
[420216310,1775796635246,-10105.2586451,0.00015595,2]
[420216311,1775796635258,-409.6703757,0.00015595,2]
[420216312,1775796635268,-15086.7312829,0.00015595,2]
[420216313,1775796635281,-3641.1362234,0.00015595,2]
[420216314,1775796635292,-6181.7062204,0.00015595,2]
[420216315,1775796635405,-2306.0880414,0.00015595,2]
[420216316,1775796635431,-155.0,0.00015599,2]
[420216317,1775796635443,-500.0,0.00015599,2]
[420216318,1775796635461,-805.51597289,0.000156,2]
[420216328,1775796637931,-150.0,0.000136,2]
[420216329,1775796637961,-1194.48402711,0.000156,2]
[420216330,1775796637972,-2256.56253432,0.000156,2]
[420216389,1775796646626,-711.40960895,0.00014104,2]
[420216392,1775796646673,-263.59039105,0.00014104,2]
[420216394,1775796646682,-181.0,0.00014132,2]
[420216396,1775796646707,-3460.33834091,0.000156,2]
[420216493,1775797608799,-261.0,0.000104,5]
[420216494,1775797608839,-1368.03566588,0.0001092,2]
[420216495,1775797608882,-600.0,0.0001144,2]
[420216496,1775797608922,-5000.0,0.0001144,2]
[420216497,1775797608960,-3000.0,0.0001144,2]
[420216505,1775797831806,-250.0,0.00013,2]
[420216506,1775797831835,-37.06431718,0.000131,2]
[420216507,1775797831870,-472.93568282,0.000131,2]
[420216508,1775797831890,-151.0,0.0001337,2]
[420216509,1775797831915,-271.0,0.0001346,2]
[420216513,1775797831979,-517.55846425,0.0001346,2]
[420216521,1775797832074,-189611.98156101,0.0001346,2]
[420216524,1775797832102,-6594.08377474,0.0001346,2]
[420216525,1775797832113,-366.99751019,0.000135,2]
[420216527,1775797832140,-150.0,0.00013559,2]
[420216528,1775797832149,-312.63579297,0.00013573,2]
[420216529,1775797832170,-150.0,0.000136,2]
[420216530,1775797832186,-849.0,0.00013617,2]
[420216531,1775797832211,-204.0,0.00013656,2]
[420216532,1775797832256,-514.24972482,0.00013698,2]
[420216533,1775797832398,-500.0,0.00013698,2]
[420216534,1775797832495,-500.0,0.00013698,2]
[420216535,1775797832552,-500.0,0.00013698,2]
[420216536,1775797832597,-500.0,0.00013698,2]
[420216537,1775797832615,-500.0,0.00013698,2]
[420216538,1775797832630,-200.0,0.00013708,2]
[420216539,1775797833018,-366.99751011,0.00013767,2]
[420216540,1775797833030,-1006.42,0.0001378,2]
[420216541,1775797833041,-1154.72280681,0.000138,2]
[420216546,1775797837932,-581.1401268,0.000138,2]
[420216547,1775797837991,-1504.13706639,0.000138,2]
[420216548,1775797838007,-1700.0,0.00013808,2]
[420216549,1775797838035,-3000.0,0.00013808,2]
[420216550,1775797838047,-166.66,0.00013829,2]
[420216551,1775797838059,-230.0,0.00013867,2]
[420216552,1775797838086,-366.99751011,0.00014033,2]
[420216553,1775797838096,-166.66,0.0001412,2]
[420216554,1775797838106,-15024.4,0.00014191,2]
[420216555,1775797838130,-366.99751011,0.000143,2]
[420216556,1775797838139,-150.04166029,0.000143,2]
[420216557,1775797838149,-2500.0,0.000143,2]
[420216558,1775797838161,-300.0,0.000143,2]
[420216559,1775797838181,-300.0,0.000143,2]
[420216560,1775797838191,-300.0,0.000143,2]
[420216561,1775797838204,-300.0,0.000143,2]
[420216562,1775797838218,-300.0,0.000143,2]
[420216563,1775797838230,-500.0,0.000143,2]
[420216564,1775797838241,-166.66,0.00014411,2]
[420216565,1775797838256,-366.99751011,0.00014567,2]
[420216566,1775797838269,-711.40960895,0.00014579,2]
[420216567,1775797838280,-166.66,0.00014702,2]
[420216568,1775797838290,-1572.0,0.0001472,2]
[420216569,1775797838306,-393.0,0.00014742,2]
[420216570,1775797838317,-393.0,0.00014745,2]
[420216571,1775797838327,-393.0,0.00014754,2]
[420216572,1775797838338,-393.0,0.0001478,2]
[420216573,1775797838357,-200.0,0.00014787,2]
[420216574,1775797838368,-393.0,0.00014809,2]
[420216575,1775797838379,-253.47962638,0.00014819,2]
[420216576,1775797838393,-366.99751011,0.00014833,2]
[420216577,1775797838405,-700.0,0.00014873,3]
[420216578,1775797838415,-174.7973,0.000149,2]
[420216579,1775797838425,-393.0,0.00014951,2]
[420216580,1775797838437,-166.66,0.00014993,2]
[420216581,1775797838452,-736.78,0.00015,2]
[420216582,1775797838463,-300.0,0.00015,2]
[420216583,1775797838475,-1548.0,0.00015,2]
[420216584,1775797838490,-510.0,0.00015011,3]
[420216585,1775797838500,-771.0,0.00015035,2]
[420216586,1775797838509,-393.0,0.00015037,2]
[420216587,1775797838521,-160.0,0.00015065,2]
[420216588,1775797838535,-393.0,0.00015071,2]
[420216589,1775797838545,-366.99751011,0.000151,2]
[420216590,1775797838555,-1700.0,0.00015178,2]
[420216591,1775797838567,-3000.0,0.00015178,2]
[420216592,1775797838577,-9031.87,0.00015205,2]
[420216593,1775797838587,-482.74547583,0.00015248,2]
[420216594,1775797838597,-771.0,0.00015262,2]
[420216595,1775797838611,-166.66,0.00015284,2]
[420216596,1775797838621,-414.55060821,0.0001532,2]
[420216597,1775797838630,-500.0,0.00015325,2]
[420216598,1775797838646,-500.0,0.00015325,2]
[420216599,1775797838661,-544.74908825,0.00015325,2]
[420216600,1775797838672,-1625.0,0.00015325,2]
[420216601,1775797838682,-366.99751011,0.00015367,2]
[420216602,1775797838694,-512.93264907,0.000154,2]
[420216603,1775797838710,-732.961425,0.000154,2]
[420216604,1775797838722,-771.0,0.00015413,2]
[420216605,1775797838733,-732.96142492,0.00015456,2]
[420216606,1775797838747,-919.939,0.00015471,2]
[420216607,1775797838757,-500.0,0.00015473,2]
[420216608,1775797838768,-500.0,0.00015473,2]
[420216609,1775797838779,-500.0,0.00015473,2]
[420216610,1775797838791,-200.0,0.00015473,2]
[420216611,1775797838801,-501.00489884,0.00015473,2]
[420216612,1775797838816,-500.69557609,0.00015473,2]
[420216613,1775797838827,-500.0,0.00015473,2]
[420216614,1775797838838,-500.0,0.00015473,2]
[420216615,1775797838852,-500.0,0.00015473,2]
[420216616,1775797838862,-500.0,0.00015473,2]
[420216617,1775797838877,-500.54158143,0.00015473,2]
[420216618,1775797838891,-318.59395236,0.00015473,2]
[420216619,1775797838904,-500.0,0.00015473,2]
[420216620,1775797838919,-500.0,0.00015473,2]
[420216621,1775797838948,-500.0,0.00015473,2]
[420216622,1775797838993,-500.0,0.00015473,2]
[420216623,1775797839051,-500.0,0.00015473,2]
[420216624,1775797839069,-501.08519287,0.00015473,2]
[420216625,1775797839092,-500.0,0.00015473,2]
[420216626,1775797839102,-500.0,0.00015473,2]
[420216627,1775797839135,-500.0,0.00015473,2]
[420216628,1775797839146,-500.0,0.00015473,2]
[420216629,1775797839170,-500.0,0.00015475,2]
[420216630,1775797839194,-500.0,0.00015499,2]
[420216631,1775797839217,-500.0,0.00015499,2]
[420216632,1775797839233,-177089.61998713,0.000155,2]
[420216633,1775797839261,-4912.41113677,0.000155,2]
[420216650,1775797841566,-58107.35484505,0.000155,2]
[420216651,1775797841595,-336.7928466,0.000155,2]
[420216652,1775797841608,-1407.52319047,0.000155,2]
[420216653,1775797841641,-1810.91461116,0.000155,2]
[420216654,1775797841655,-2075.70576896,0.000155,2]
[420216655,1775797841765,-7398.12721386,0.000155,2]
[420216656,1775797841775,-151.0,0.000155,2]
[420216657,1775797841792,-157.281504,0.000155,2]
[420216658,1775797841803,-151.0,0.000155,2]
[420216659,1775797841813,-157.281504,0.000155,2]
[420216660,1775797841824,-151.0,0.000155,2]
[420216661,1775797841837,-157.281504,0.000155,2]
[420216662,1775797841849,-151.0,0.000155,2]
[420216663,1775797841859,-157.281504,0.000155,2]
[420216664,1775797841880,-151.0,0.000155,2]
[420216665,1775797841898,-151.0,0.000155,2]
[420216666,1775797841907,-151.0,0.000155,2]
[420216667,1775797841916,-151.0,0.000155,2]
[420216668,1775797841930,-151.0,0.000155,2]
[420216669,1775797841950,-151.0,0.000155,2]
[420216670,1775797841961,-151.0,0.000155,2]
[420216671,1775797841974,-151.0,0.000155,2]
[420216672,1775797841994,-151.0,0.000155,2]
[420216674,1775797842009,-151.0,0.000155,2]
[420216675,1775797842018,-151.0,0.000155,2]
[420216676,1775797842052,-151.0,0.000155,2]
[420216678,1775797842084,-151.0,0.000155,2]
[420216679,1775797842111,-151.0,0.000155,2]
[420216680,1775797842158,-203.415004,0.000155,2]
[420216681,1775797842177,-151.0,0.000155,2]
[420216682,1775797842204,-2379.029205,0.000155,2]
[420216683,1775797842217,-2379.029205,0.000155,2]
[420216684,1775797842234,-2379.029205,0.000155,2]
[420216685,1775797842244,-2379.029205,0.000155,2]
[420216686,1775797842253,-151.0,0.000155,2]
[420216687,1775797842266,-151.0,0.000155,2]
[420216688,1775797842282,-152.464395,0.000155,2]
[420216689,1775797842291,-252.304781,0.000155,2]
[420216690,1775797842303,-151.0,0.000155,2]
[420216691,1775797842317,-168.793611,0.000155,2]
[420216692,1775797842330,-252.304781,0.000155,2]
[420216693,1775797842339,-150.1927563,0.000155,2]
[420216694,1775797842351,-151.0,0.000155,2]
[420216695,1775797842367,-168.793611,0.000155,2]
[420216696,1775797842376,-252.304781,0.000155,2]
[420216697,1775797842385,-151.0,0.000155,2]
[420216698,1775797842395,-151.0,0.000155,2]
[420216699,1775797842410,-168.793611,0.000155,2]
[420216700,1775797842422,-151.0,0.000155,2]
[420216701,1775797842430,-252.304781,0.000155,2]
[420216702,1775797842439,-151.0,0.000155,2]
[420216703,1775797842453,-168.793611,0.000155,2]
[420216704,1775797842466,-151.0,0.000155,2]
[420216705,1775797842474,-151.416245,0.000155,2]
[420216706,1775797842483,-151.0,0.000155,2]
[420216707,1775797842497,-4000.0,0.00015507,2]
[420216708,1775797842509,-732.96142492,0.00015511,2]
[420216709,1775797842518,-1419.0,0.00015525,2]
[420216710,1775797842527,-187.07,0.00015529,7]
[420216711,1775797842540,-327.37,0.00015534,7]
[420216712,1775797842552,-163.2559513,0.00015537,2]
[420216713,1775797842565,-2757.8991828,0.00015537,2]
[420216714,1775797842574,-181.2814982,0.00015537,2]
[420216715,1775797842590,-400.0,0.00015538,7]
[420216716,1775797842605,-732.96142492,0.00015567,2]
[420216717,1775797842614,-500.0,0.00015573,2]
[420216718,1775797842632,-187.042642,0.00015581,2]
[420216719,1775797842651,-298.64923046,0.0001559,2]
[420216720,1775797842667,-500.0,0.00015599,2]
[420216721,1775797842702,-2000.0,0.000156,2]
[420216723,1775797842735,-297.36926272,0.000156,2]
[420216724,1775797842771,-170.65,0.000156,2]
[420216725,1775797842805,-234.86352628,0.000156,2]
[420216727,1775797842825,-151.0,0.000156,2]
[420216729,1775797842838,-151.497457,0.000156,2]
[420216731,1775797842857,-152.208795,0.000156,2]
[420216732,1775797842872,-151.0,0.000156,2]
[420216733,1775797842888,-153.227967,0.000156,2]
[420216734,1775797842903,-159.655461,0.000156,2]
[420216735,1775797842914,-151.0,0.000156,2]
[420216736,1775797842930,-151.0,0.000156,2]
[420216737,1775797842944,-282.595507,0.000156,2]
[420216738,1775797842958,-151.0,0.000156,2]
[420216739,1775797842974,-151.0,0.000156,2]
[420216740,1775797842983,-151.0,0.000156,2]
[420216741,1775797842996,-217.067282,0.000156,2]
[420216742,1775797843007,-151.0,0.000156,2]
[420216743,1775797843022,-170.433749,0.000156,2]
[420216744,1775797843035,-151.0,0.000156,2]
[420216745,1775797843045,-151.0,0.000156,2]
[420216746,1775797843062,-151.0,0.000156,2]
[420216747,1775797843073,-151.0,0.000156,2]
[420216748,1775797843084,-151.0,0.000156,2]
[420216749,1775797843103,-151.0,0.000156,2]
[420216750,1775797843114,-151.0,0.000156,2]
[420216751,1775797843127,-151.0,0.000156,2]
[420216752,1775797843139,-152.350662,0.000156,2]
[420216753,1775797843154,-28790.33695818,0.000156,2]
[420216754,1775797843231,-90646.04061452,0.000156,2]
[420216755,1775797843241,-151.0,0.000156,2]
[420216756,1775797843251,-151.0,0.000156,2]
[420216757,1775797843260,-192.903326,0.000156,2]
[420216758,1775797843271,-151.0,0.000156,2]
[420216759,1775797843280,-151.0,0.000156,2]
[420216760,1775797843290,-151.0,0.000156,2]
[420216761,1775797843300,-199.8,0.000156,2]
[420216763,1775797843310,-151.0,0.000156,2]
[420216764,1775797843322,-151.0,0.000156,2]
[420216765,1775797843332,-151.0,0.000156,2]
[420216766,1775797843341,-151.0,0.000156,2]
[420216767,1775797843351,-151.0,0.000156,2]
[420216768,1775797843364,-151.0,0.000156,2]
[420216769,1775797843374,-151.0,0.000156,2]
[420216770,1775797843383,-151.0,0.000156,2]
[420216771,1775797843392,-151.0,0.000156,2]
[420216772,1775797843407,-151.0,0.000156,2]
[420216773,1775797843417,-434.082477,0.000156,2]
[420216774,1775797843427,-434.082477,0.000156,2]
[420216775,1775797843437,-434.082477,0.000156,2]
[420216776,1775797843451,-434.082477,0.000156,2]
[420216777,1775797843460,-151.0,0.000156,2]
[420216778,1775797843470,-320.73865,0.000156,2]
[420216779,1775797843484,-151.0,0.000156,2]
[420216780,1775797843493,-151.0,0.000156,2]
[420216781,1775797843503,-151.0,0.000156,2]
[420216782,1775797843512,-151.0,0.000156,2]
[420216783,1775797843528,-151.0,0.000156,2]
[420216784,1775797843538,-244.784976,0.000156,2]
[420216785,1775797843547,-151.0,0.000156,2]
[420216786,1775797843559,-151.0,0.000156,2]
[420216787,1775797843572,-151.0,0.000156,2]
[420216788,1775797843582,-154.50673,0.000156,2]
[420216789,1775797843591,-151.0,0.000156,2]
[420216790,1775797843602,-151.0,0.000156,2]
[420216791,1775797843616,-151.0,0.000156,2]
[420216792,1775797843627,-306.0,0.000156,2]
[420216793,1775797843637,-151.0,0.000156,2]
[420216794,1775797843649,-151.0,0.000156,2]
[420216796,1775797843663,-151.0,0.000156,2]
[420216798,1775797843673,-151.0,0.000156,2]
[420216802,1775797843687,-175.593807,0.000156,2]
[420216804,1775797843699,-151.0,0.000156,2]
[420216806,1775797843708,-151.0,0.000156,2]
[420216807,1775797843723,-151.0,0.000156,2]
[420216808,1775797843734,-151.0,0.000156,2]
[420216809,1775797843745,-151.0,0.000156,2]
[420216810,1775797843754,-151.0,0.000156,2]
[420216811,1775797843770,-151.0,0.000156,2]
[420216812,1775797843782,-151.0,0.000156,2]
[420216813,1775797843791,-151.0,0.000156,2]
[420216814,1775797843803,-151.0,0.000156,2]
[420216815,1775797843815,-151.0,0.000156,2]
[420216816,1775797843826,-151.0,0.000156,2]
[420216817,1775797843835,-151.0,0.000156,2]
[420216818,1775797843847,-151.0,0.000156,2]
[420216819,1775797843859,-166.762421,0.000156,2]
[420216820,1775797843869,-166.762421,0.000156,2]
[420216821,1775797843880,-151.0,0.000156,2]
[420216822,1775797843889,-151.0,0.000156,2]
[420216823,1775797843902,-166.762421,0.000156,2]
[420216824,1775797843913,-151.0,0.000156,2]
[420216825,1775797843926,-151.0,0.000156,2]
[420216826,1775797843936,-166.762421,0.000156,2]
[420216827,1775797843945,-151.0,0.000156,2]
[420216828,1775797843954,-151.0,0.000156,2]
[420216829,1775797843974,-151.0,0.000156,2]
[420216830,1775797843983,-151.0,0.000156,2]
[420216831,1775797843992,-151.0,0.000156,2]
[420216832,1775797844009,-1000.0,0.000156,2]
[420216833,1775797844026,-151.0,0.000156,2]
[420216834,1775797844036,-274.264293,0.000156,2]
[420216835,1775797844046,-151.0,0.000156,2]
[420216836,1775797844060,-274.264293,0.000156,2]
[420216837,1775797844074,-151.0,0.000156,2]
[420216838,1775797844085,-274.264293,0.000156,2]
[420216839,1775797844094,-151.0,0.000156,2]
[420216840,1775797844103,-151.0,0.000156,2]
[420216841,1775797844117,-274.264293,0.000156,2]
[420216842,1775797844130,-151.0,0.000156,2]
[420216843,1775797844140,-151.0,0.000156,2]
[420216844,1775797844149,-151.0,0.000156,2]
[420216845,1775797844174,-154.925788,0.000156,2]
[420216846,1775797844186,-313.0,0.000156,2]
[420216847,1775797844206,-166.873233,0.000156,2]
[420216848,1775797844233,-154.925788,0.000156,2]
[420216849,1775797844295,-166.873233,0.000156,2]
[420216850,1775797844338,-154.925788,0.000156,2]
[420216851,1775797844366,-166.873233,0.000156,2]
[420216852,1775797844385,-154.925788,0.000156,2]
[420216853,1775797844399,-166.873233,0.000156,2]
[420216854,1775797844421,-151.0,0.000156,2]
[420216855,1775797844435,-151.0,0.000156,2]
[420216856,1775797844460,-151.0,0.000156,2]
[420216857,1775797844470,-151.0,0.000156,2]
[420216858,1775797844482,-151.0,0.000156,2]
[420216859,1775797844505,-151.0,0.000156,2]
[420216860,1775797844516,-151.0,0.000156,2]
[420216861,1775797844527,-151.0,0.000156,2]
[420216862,1775797844541,-157.281504,0.000156,2]
[420216863,1775797844551,-151.0,0.000156,2]
[420216864,1775797844561,-157.281504,0.000156,2]
[420216865,1775797844573,-151.0,0.000156,2]
[420216866,1775797844586,-157.281504,0.000156,2]
[420216867,1775797844596,-151.0,0.000156,2]
[420216868,1775797844607,-157.281504,0.000156,2]
[420216869,1775797844619,-151.0,0.000156,2]
[420216870,1775797844630,-151.0,0.000156,2]
[420216871,1775797844640,-151.0,0.000156,2]
[420216872,1775797844651,-151.0,0.000156,2]
[420216873,1775797844661,-151.0,0.000156,2]
[420216874,1775797844674,-151.0,0.000156,2]
[420216875,1775797844685,-151.0,0.000156,2]
[420216876,1775797844697,-151.0,0.000156,2]
[420216877,1775797844710,-195.3277477,0.000156,2]
[420216878,1775797844722,-191.165741,0.000156,2]
[420216879,1775797844733,-151.0,0.000156,2]
[420216880,1775797844748,-151.0,0.000156,2]
[420216881,1775797844757,-151.0,0.000156,2]
[420216882,1775797844766,-151.0,0.000156,2]
[420216883,1775797844777,-151.0,0.000156,2]
[420216884,1775797844786,-2379.029205,0.000156,2]
[420216885,1775797844799,-202.0,0.000156,3]
[420216886,1775797844811,-2379.029205,0.000156,2]
[420216887,1775797844820,-160.0,0.000156,3]
[420216888,1775797844829,-2379.029205,0.000156,2]
[420216889,1775797844846,-2379.029205,0.000156,2]
[420216890,1775797844856,-164.32262,0.000156,2]
[420216891,1775797844865,-151.0,0.000156,2]
[420216892,1775797844881,-252.304781,0.000156,2]
[420216893,1775797844894,-151.0,0.000156,2]
[420216894,1775797844905,-168.793611,0.000156,2]
[420216895,1775797844915,-252.304781,0.000156,2]
[420216896,1775797844926,-151.0,0.000156,2]
[420216897,1775797844938,-168.793611,0.000156,2]
[420216898,1775797844952,-252.304781,0.000156,2]
[420216899,1775797844966,-151.0,0.000156,2]
[420216900,1775797844976,-151.0,0.000156,2]
[420216901,1775797844989,-168.793611,0.000156,2]
[420216902,1775797845008,-151.0,0.000156,2]
[420216903,1775797845017,-252.304781,0.000156,2]
[420216904,1775797845032,-151.0,0.000156,2]
[420216905,1775797845050,-168.793611,0.000156,2]
[420216906,1775797845060,-151.0,0.000156,2]
[420216907,1775797845085,-151.0,0.000156,2]
[420216908,1775797845101,-732.96142492,0.00015622,2]
[420216909,1775797845120,-221.18,0.00015628,7]
[420216910,1775797845143,-366.99751011,0.00015633,2]
[420216911,1775797845156,-734.36989048,0.00015634,2]
[420216912,1775797845170,-732.96142492,0.00015678,2]
[420216913,1775797845191,-1888.72878967,0.0001568,2]
[420216914,1775797845206,-1023.0,0.0001568,2]
[420216915,1775797845227,-2000.0,0.00015706,2]
[420216916,1775797845237,-732.96142492,0.00015733,2]
[420216917,1775797845254,-3525.0,0.00015771,2]
[420216918,1775797845268,-622.0,0.00015771,2]
[420216919,1775797845279,-1347.0,0.00015771,2]
[420216920,1775797845293,-1047.0,0.00015771,2]
[420216921,1775797845312,-929.166,0.00015771,2]
[420216922,1775797845355,-1223.322,0.00015771,2]
[420216923,1775797845370,-2471.0,0.00015771,2]
[420216924,1775797845381,-1182.858,0.00015771,2]
[420216925,1775797845409,-438.525,0.00015771,2]
[420216926,1775797845419,-732.96142492,0.00015789,2]
[420216927,1775797845431,-405.0,0.00015799,2]
[420216928,1775797845462,-159.0,0.000158,5]
[420216929,1775797845486,-1725.79,0.000158,2]
[420216930,1775797845509,-1043.65,0.000158,2]
[420216932,1775797845518,-260.89,0.000158,2]
[420216934,1775797845525,-260.89,0.000158,2]
[420216936,1775797845538,-320.73865,0.000158,2]
[420216938,1775797845547,-1119.0,0.00015842,2]
[420216940,1775797845556,-732.96142492,0.00015844,2]
[420216941,1775797845564,-323.0,0.00015847,2]
[420216943,1775797845571,-5000.0,0.00015873,2]
[420216945,1775797845578,-151.0,0.00015873,2]
[420216946,1775797845587,-151.0,0.00015873,2]
[420216947,1775797845594,-151.0,0.00015873,2]
[420216948,1775797845602,-151.0,0.00015873,2]
[420216949,1775797845612,-151.0,0.00015873,2]
[420216950,1775797845622,-150.0,0.00015878,2]
[420216951,1775797845629,-162.9131,0.0001588,2]
[420216952,1775797845639,-500.0,0.00015889,7]
[420216953,1775797845650,-151.0,0.0001589,2]
[420216954,1775797845658,-151.0,0.0001589,2]
[420216955,1775797845668,-151.0,0.0001589,2]
[420216956,1775797845679,-151.0,0.0001589,2]
[420216957,1775797845691,-151.0,0.0001589,2]
[420216958,1775797845699,-151.0,0.0001589,2]
[420216959,1775797845710,-151.0,0.0001589,2]
[420216960,1775797845719,-151.0,0.0001589,2]
[420216961,1775797845733,-151.0,0.0001589,2]
[420216962,1775797845741,-258.538172,0.0001589,2]
[420216963,1775797845752,-500.0,0.0001589,2]
[420216964,1775797845762,-151.0,0.0001589,2]
[420216965,1775797845775,-274.264293,0.0001589,2]
[420216966,1775797845784,-151.0,0.0001589,2]
[420216967,1775797845797,-274.264293,0.0001589,2]
[420216968,1775797845809,-151.0,0.0001589,2]
[420216969,1775797845822,-274.264293,0.0001589,2]
[420216970,1775797845832,-151.0,0.0001589,2]
[420216971,1775797845844,-151.0,0.0001589,2]
[420216972,1775797845856,-274.264293,0.0001589,2]
[420216973,1775797845867,-151.0,0.0001589,2]
[420216974,1775797845878,-191.192144,0.0001589,2]
[420216975,1775797845893,-178.03133,0.0001589,2]
[420216976,1775797845904,-154.925788,0.0001589,2]
[420216977,1775797845917,-166.873233,0.0001589,2]
[420216978,1775797845929,-154.925788,0.0001589,2]
[420216979,1775797845946,-166.873233,0.0001589,2]
[420216980,1775797845971,-154.925788,0.0001589,2]
[420216981,1775797845986,-166.873233,0.0001589,2]
[420216982,1775797845999,-154.925788,0.0001589,2]